[Event "Early-Titled-Tuesday-Blitz-October-17-2023"]
[Site "Chess.com"]
[Date "2023.10.17"]
[Round "8"]
[White "FunnyDuck66"]
[Black "AndresDelgado77"]
[Result "1-0"]
[WhiteElo "2478"]
[BlackElo "2341"]
[TimeControl "180+1"]
[EndTime "9:32:29 PDT"]
[Termination "FunnyDuck66 won on time"]

1. d4 {[%clk 0:02:55.9]} 1... Nf6 {[%clk 0:02:57.8]} 2. Nf3 {[%clk 0:02:54]}
2... c5 {[%clk 0:02:53.6]} 3. d5 {[%clk 0:02:52]} 3... b5 {[%clk 0:02:52.4]} 4.
Bg5 {[%clk 0:02:46.7]} 4... Ne4 {[%clk 0:02:30.5]} 5. Bh4 {[%clk 0:02:44.6]}
5... g6 {[%clk 0:02:20]} 6. Nbd2 {[%clk 0:02:43.4]} 6... Nxd2 {[%clk 0:02:17.5]}
7. Qxd2 {[%clk 0:02:44.3]} 7... d6 {[%clk 0:02:15]} 8. e4 {[%clk 0:02:43.2]}
8... a6 {[%clk 0:02:12.4]} 9. c3 {[%clk 0:02:39.4]} 9... Bg4 {[%clk 0:02:07.3]}
10. a4 {[%clk 0:02:38.2]} 10... Nd7 {[%clk 0:02:01.9]} 11. Be2 {[%clk
0:02:27.6]} 11... Bxf3 {[%clk 0:01:48.7]} 12. Bxf3 {[%clk 0:02:27]} 12... Bg7
{[%clk 0:01:45]} 13. Be2 {[%clk 0:02:24.7]} 13... O-O {[%clk 0:01:23]} 14. O-O
{[%clk 0:02:18.3]} 14... Nf6 {[%clk 0:01:16.3]} 15. Bxf6 {[%clk 0:02:12.1]}
15... Bxf6 {[%clk 0:01:15.8]} 16. axb5 {[%clk 0:02:12.7]} 16... axb5 {[%clk
0:01:14.8]} 17. Rxa8 {[%clk 0:02:13.4]} 17... Qxa8 {[%clk 0:01:14.5]} 18. Bxb5
{[%clk 0:02:14.3]} 18... Rb8 {[%clk 0:01:14.5]} 19. Bc4 {[%clk 0:01:59.8]} 19...
Qa4 {[%clk 0:00:50.1]} 20. b3 {[%clk 0:01:55.1]} 20... Qa5 {[%clk 0:00:48.8]}
21. Rc1 {[%clk 0:01:54.9]} 21... Ra8 {[%clk 0:00:47.4]} 22. f4 {[%clk
0:01:50.8]} 22... Qa2 {[%clk 0:00:44.2]} 23. Qe1 {[%clk 0:01:39.5]} 23... Qb2
{[%clk 0:00:36.9]} 24. Bd3 {[%clk 0:00:34.2]} 24... Qxb3 {[%clk 0:00:28.6]} 25.
e5 {[%clk 0:00:32.1]} 25... dxe5 {[%clk 0:00:16.2]} 26. fxe5 {[%clk 0:00:33]}
26... Bg5 {[%clk 0:00:16.5]} 27. Rb1 {[%clk 0:00:33.2]} 27... Qa3 {[%clk
0:00:10.3]} 28. d6 {[%clk 0:00:21.4]} 28... exd6 {[%clk 0:00:09.1]} 29. exd6
{[%clk 0:00:22.3]} 29... c4 {[%clk 0:00:08.4]} 30. Bxc4 {[%clk 0:00:15.1]} 30...
Qc5+ {[%clk 0:00:08.4]} 31. Qf2 {[%clk 0:00:09.6]} 31... Qxc4 {[%clk 0:00:08.1]}
32. Qf3 {[%clk 0:00:09.8]} 32... Rd8 {[%clk 0:00:07.1]} 33. Rd1 {[%clk
0:00:10.4]} 33... Qe6 {[%clk 0:00:06]} 34. c4 {[%clk 0:00:07.4]} 34... Qe3+
{[%clk 0:00:05.1]} 35. Qxe3 {[%clk 0:00:07.9]} 35... Bxe3+ {[%clk 0:00:05.2]}
36. Kf1 {[%clk 0:00:08.4]} 36... Bc5 {[%clk 0:00:05.3]} 37. d7 {[%clk
0:00:09.1]} 37... Kf8 {[%clk 0:00:05.8]} 38. Rd5 {[%clk 0:00:09.5]} 38... Be7
{[%clk 0:00:04.4]} 39. c5 {[%clk 0:00:09.6]} 1-0

[Event "Early-Titled-Tuesday-Blitz-October-17-2023"]
[Site "Chess.com"]
[Date "2023.10.17"]
[Round "8"]
[White "djokovic74"]
[Black "dosto07"]
[Result "1-0"]
[WhiteElo "2742"]
[BlackElo "2557"]
[TimeControl "180+1"]
[EndTime "9:32:36 PDT"]
[Termination "djokovic74 won on time"]

1. e4 {[%clk 0:03:00.9]} 1... e5 {[%clk 0:02:48.3]} 2. Nf3 {[%clk 0:03:00.3]}
2... Nc6 {[%clk 0:02:47.8]} 3. Bb5 {[%clk 0:03:00.1]} 3... a6 {[%clk 0:02:47]}
4. Ba4 {[%clk 0:03:00.4]} 4... Nf6 {[%clk 0:02:47.6]} 5. O-O {[%clk 0:03:00.7]}
5... Be7 {[%clk 0:02:48.2]} 6. d3 {[%clk 0:03:00.5]} 6... b5 {[%clk 0:02:47]} 7.
Bb3 {[%clk 0:03:00.8]} 7... d6 {[%clk 0:02:47.7]} 8. a3 {[%clk 0:03:00.7]} 8...
Na5 {[%clk 0:02:40.8]} 9. Ba2 {[%clk 0:02:59.8]} 9... c5 {[%clk 0:02:41]} 10.
Nc3 {[%clk 0:02:58.6]} 10... Be6 {[%clk 0:02:38.6]} 11. Bd2 {[%clk 0:02:41.9]}
11... O-O {[%clk 0:02:33.5]} 12. b4 {[%clk 0:02:38]} 12... Nc6 {[%clk
0:02:24.3]} 13. Nd5 {[%clk 0:02:35.6]} 13... Bxd5 {[%clk 0:02:13.2]} 14. exd5
{[%clk 0:02:34.9]} 14... Nd4 {[%clk 0:02:12.8]} 15. bxc5 {[%clk 0:02:01.8]}
15... Nxf3+ {[%clk 0:02:11.1]} 16. Qxf3 {[%clk 0:02:02.4]} 16... dxc5 {[%clk
0:02:11.3]} 17. Rfe1 {[%clk 0:02:02.1]} 17... Bd6 {[%clk 0:02:09.1]} 18. a4
{[%clk 0:01:39.9]} 18... Re8 {[%clk 0:01:59.3]} 19. Bg5 {[%clk 0:01:20]} 19...
h6 {[%clk 0:01:56.7]} 20. Bh4 {[%clk 0:01:18.1]} 20... g5 {[%clk 0:01:25.1]} 21.
Bg3 {[%clk 0:01:16.2]} 21... Nd7 {[%clk 0:01:19.2]} 22. Qf5 {[%clk 0:01:11.7]}
22... Ra7 {[%clk 0:01:08.1]} 23. axb5 {[%clk 0:01:05.5]} 23... axb5 {[%clk
0:01:07.6]} 24. Bb3 {[%clk 0:01:06.2]} 24... Qa8 {[%clk 0:00:48.7]} 25. Rxa7
{[%clk 0:00:58.8]} 25... Qxa7 {[%clk 0:00:48.9]} 26. c3 {[%clk 0:00:40.3]} 26...
Qc7 {[%clk 0:00:26.5]} 27. Bc2 {[%clk 0:00:35.8]} 27... Nf8 {[%clk 0:00:21.9]}
28. Qf6 {[%clk 0:00:28.6]} 28... Ng6 {[%clk 0:00:08.5]} 29. d4 {[%clk
0:00:28.7]} 29... Be7 {[%clk 0:00:05.9]} 30. Qf5 {[%clk 0:00:25.8]} 30... cxd4
{[%clk 0:00:06.2]} 31. cxd4 {[%clk 0:00:26.2]} 31... Qc3 {[%clk 0:00:05.9]} 32.
Rf1 {[%clk 0:00:14.8]} 32... exd4 {[%clk 0:00:05.9]} 33. d6 {[%clk 0:00:15.4]}
33... Bf8 {[%clk 0:00:05.5]} 34. Be4 {[%clk 0:00:08.3]} 34... Qc8 {[%clk
0:00:03.7]} 35. d7 {[%clk 0:00:08]} 35... Qd8 {[%clk 0:00:03.9]} 36. dxe8=Q
{[%clk 0:00:08.2]} 36... Qxe8 {[%clk 0:00:04.7]} 37. Bd5 {[%clk 0:00:08.2]}
37... Kg7 {[%clk 0:00:03]} 38. Qd3 {[%clk 0:00:06.7]} 38... Bc5 {[%clk
0:00:02.3]} 39. Be4 {[%clk 0:00:05.5]} 39... Qe7 {[%clk 0:00:02.4]} 40. Bxg6
{[%clk 0:00:05.5]} 40... fxg6 {[%clk 0:00:02.6]} 41. Qxb5 {[%clk 0:00:05.7]} 1-0

[Event "Early-Titled-Tuesday-Blitz-October-17-2023"]
[Site "Chess.com"]
[Date "2023.10.17"]
[Round "8"]
[White "Jojo_898"]
[Black "nitpicker"]
[Result "1-0"]
[WhiteElo "2355"]
[BlackElo "2244"]
[TimeControl "180+1"]
[EndTime "9:32:36 PDT"]
[Termination "Jojo_898 won on time"]

1. e4 {[%clk 0:02:58.5]} 1... c5 {[%clk 0:02:59]} 2. Nf3 {[%clk 0:02:58]} 2...
d6 {[%clk 0:02:58.9]} 3. c3 {[%clk 0:02:57.6]} 3... Nf6 {[%clk 0:02:49.8]} 4.
Bd3 {[%clk 0:02:56.2]} 4... g6 {[%clk 0:02:48.3]} 5. O-O {[%clk 0:02:54.4]} 5...
Bg4 {[%clk 0:02:42.3]} 6. h3 {[%clk 0:02:53.8]} 6... Bxf3 {[%clk 0:02:41.7]} 7.
Qxf3 {[%clk 0:02:54.7]} 7... Nc6 {[%clk 0:02:38.7]} 8. Bc2 {[%clk 0:02:55.3]}
8... Bg7 {[%clk 0:02:37]} 9. Rd1 {[%clk 0:02:47.3]} 9... Nd7 {[%clk 0:02:33.6]}
10. Qe3 {[%clk 0:02:37.5]} 10... e5 {[%clk 0:02:27]} 11. Na3 {[%clk 0:02:30.4]}
11... O-O {[%clk 0:02:23.7]} 12. d3 {[%clk 0:02:25.6]} 12... f5 {[%clk
0:02:12.4]} 13. exf5 {[%clk 0:02:12]} 13... gxf5 {[%clk 0:02:09.2]} 14. Qg3
{[%clk 0:02:09.6]} 14... Kh8 {[%clk 0:02:04.9]} 15. Nc4 {[%clk 0:02:06.1]} 15...
Nf6 {[%clk 0:01:42.6]} 16. d4 {[%clk 0:01:59.8]} 16... cxd4 {[%clk 0:01:37.4]}
17. Bxf5 {[%clk 0:01:58.5]} 17... b5 {[%clk 0:01:15.4]} 18. Nd2 {[%clk
0:01:41.4]} 18... Nh5 {[%clk 0:00:57]} 19. Qg4 {[%clk 0:01:38.7]} 19... Nf4
{[%clk 0:00:53.1]} 20. Ne4 {[%clk 0:01:25.2]} 20... d5 {[%clk 0:00:37.9]} 21.
Ng3 {[%clk 0:01:23.1]} 21... Bh6 {[%clk 0:00:32.2]} 22. cxd4 {[%clk 0:01:15.6]}
22... Nxd4 {[%clk 0:00:29.4]} 23. Bxf4 {[%clk 0:01:14]} 23... Bxf4 {[%clk
0:00:29.5]} 24. Rxd4 {[%clk 0:01:13.7]} 24... Bxg3 {[%clk 0:00:29.7]} 25. Qh5
{[%clk 0:00:56.1]} 25... Rxf5 {[%clk 0:00:20.3]} 26. Qxf5 {[%clk 0:00:57]} 26...
exd4 {[%clk 0:00:20.2]} 27. fxg3 {[%clk 0:00:56.5]} 27... Qd6 {[%clk 0:00:16.8]}
28. Qf2 {[%clk 0:00:53.9]} 28... Qe5 {[%clk 0:00:15.3]} 29. Re1 {[%clk
0:00:52.2]} 29... Qg7 {[%clk 0:00:13.5]} 30. Rd1 {[%clk 0:00:49.8]} 30... Rg8
{[%clk 0:00:12.3]} 31. Rxd4 {[%clk 0:00:47.6]} 31... Qe5 {[%clk 0:00:08.3]} 32.
Rd3 {[%clk 0:00:40.2]} 32... Rd8 {[%clk 0:00:08.2]} 33. Re3 {[%clk 0:00:34.9]}
33... Qd6 {[%clk 0:00:07.9]} 34. Rb3 {[%clk 0:00:31.4]} 34... a6 {[%clk
0:00:06.9]} 35. Rf3 {[%clk 0:00:27.5]} 35... d4 {[%clk 0:00:06.7]} 36. Rf6
{[%clk 0:00:26.7]} 36... Qe7 {[%clk 0:00:06]} 37. Rf7 {[%clk 0:00:26.1]} 37...
Qe3 {[%clk 0:00:05.4]} 38. Qxe3 {[%clk 0:00:26.3]} 38... dxe3 {[%clk 0:00:04.8]}
39. Re7 {[%clk 0:00:24.4]} 39... Rd2 {[%clk 0:00:04.5]} 40. Rxe3 {[%clk
0:00:24.7]} 40... Rxb2 {[%clk 0:00:04.7]} 41. a3 {[%clk 0:00:25]} 41... Ra2
{[%clk 0:00:04.2]} 42. g4 {[%clk 0:00:23.6]} 42... a5 {[%clk 0:00:04.5]} 43. Kh2
{[%clk 0:00:22.8]} 43... b4 {[%clk 0:00:05]} 44. axb4 {[%clk 0:00:22.2]} 44...
axb4 {[%clk 0:00:05.9]} 45. Re7 {[%clk 0:00:19.1]} 45... b3 {[%clk 0:00:04.1]}
46. Rb7 {[%clk 0:00:19.7]} 46... Rb2 {[%clk 0:00:03.8]} 47. Kg3 {[%clk
0:00:19.4]} 47... Rb1 {[%clk 0:00:04.1]} 48. Kh4 {[%clk 0:00:18.9]} 48... Rb2
{[%clk 0:00:02]} 49. g3 {[%clk 0:00:18.6]} 49... Kg8 {[%clk 0:00:01]} 50. Kh5
{[%clk 0:00:18.6]} 1-0

[Event "Early-Titled-Tuesday-Blitz-October-17-2023"]
[Site "Chess.com"]
[Date "2023.10.17"]
[Round "8"]
[White "topin8"]
[Black "ajedrezhoy"]
[Result "1-0"]
[WhiteElo "2499"]
[BlackElo "2375"]
[TimeControl "180+1"]
[EndTime "9:32:37 PDT"]
[Termination "topin8 won on time"]

1. e4 {[%clk 0:03:00.9]} 1... Nf6 {[%clk 0:02:57.8]} 2. Nc3 {[%clk 0:02:53.2]}
2... d5 {[%clk 0:02:57]} 3. exd5 {[%clk 0:02:53.2]} 3... Nxd5 {[%clk 0:02:56.5]}
4. Bc4 {[%clk 0:02:52.1]} 4... Nb6 {[%clk 0:02:56.6]} 5. Bb3 {[%clk 0:02:41]}
5... c5 {[%clk 0:02:56.2]} 6. d3 {[%clk 0:02:39.8]} 6... Nc6 {[%clk 0:02:55.6]}
7. Nf3 {[%clk 0:02:12.6]} 7... Bf5 {[%clk 0:02:54.4]} 8. Nh4 {[%clk 0:01:44.1]}
8... Bg6 {[%clk 0:02:50.5]} 9. O-O {[%clk 0:01:44.1]} 9... e6 {[%clk 0:02:49.8]}
10. Nxg6 {[%clk 0:01:43.4]} 10... hxg6 {[%clk 0:02:49.9]} 11. h3 {[%clk
0:01:43.8]} 11... Nd4 {[%clk 0:02:42]} 12. Re1 {[%clk 0:01:37.6]} 12... Be7
{[%clk 0:02:41.1]} 13. Be3 {[%clk 0:01:28.6]} 13... Qd7 {[%clk 0:02:31.5]} 14.
Ne2 {[%clk 0:01:07]} 14... Nxb3 {[%clk 0:02:14.3]} 15. axb3 {[%clk 0:01:07.9]}
15... Nd5 {[%clk 0:02:11.5]} 16. Bd2 {[%clk 0:01:08.1]} 16... Bf6 {[%clk
0:02:01.1]} 17. Nc3 {[%clk 0:01:08.3]} 17... O-O {[%clk 0:01:48.9]} 18. Ra4
{[%clk 0:00:26.9]} 18... Nb4 {[%clk 0:01:18.8]} 19. Ne4 {[%clk 0:00:23.1]} 19...
Na6 {[%clk 0:00:39]} 20. Nxf6+ {[%clk 0:00:19.9]} 20... gxf6 {[%clk 0:00:38.7]}
21. Rh4 {[%clk 0:00:19.7]} 21... Nc7 {[%clk 0:00:19.3]} 22. Qf3 {[%clk
0:00:18.5]} 22... Nd5 {[%clk 0:00:17]} 23. c4 {[%clk 0:00:12.4]} 23... Nb4
{[%clk 0:00:15.5]} 24. d4 {[%clk 0:00:12.1]} 24... Qe7 {[%clk 0:00:13.1]} 25.
dxc5 {[%clk 0:00:10.2]} 25... Rfd8 {[%clk 0:00:12.3]} 26. Bxb4 {[%clk
0:00:09.8]} 26... a5 {[%clk 0:00:11.5]} 27. Bc3 {[%clk 0:00:09.7]} 27... e5
{[%clk 0:00:10.9]} 28. Rhe4 {[%clk 0:00:06]} 28... Kg7 {[%clk 0:00:10.1]} 29.
Qe3 {[%clk 0:00:03.8]} 29... Rac8 {[%clk 0:00:07.5]} 30. f4 {[%clk 0:00:04]}
30... Qxc5 {[%clk 0:00:05.9]} 31. Qxc5 {[%clk 0:00:03.9]} 31... Rxc5 {[%clk
0:00:06.1]} 32. fxe5 {[%clk 0:00:04.8]} 32... f5 {[%clk 0:00:06.1]} 33. R4e2
{[%clk 0:00:03.9]} 33... Kf8 {[%clk 0:00:06.1]} 34. Kf2 {[%clk 0:00:04.4]} 34...
Ke7 {[%clk 0:00:05.7]} 35. Rd2 {[%clk 0:00:04.8]} 35... Rxd2+ {[%clk 0:00:05.2]}
36. Bxd2 {[%clk 0:00:05.7]} 36... Ke6 {[%clk 0:00:05.5]} 37. Bc3 {[%clk
0:00:06.2]} 37... b5 {[%clk 0:00:04.9]} 38. cxb5 {[%clk 0:00:06]} 38... Rxb5
{[%clk 0:00:04.7]} 39. Ra1 {[%clk 0:00:06.6]} 39... Rxb3 {[%clk 0:00:04.4]} 40.
Rxa5 {[%clk 0:00:07.2]} 40... Rb6 {[%clk 0:00:02.5]} 41. Ke3 {[%clk 0:00:07.2]}
41... g5 {[%clk 0:00:02.7]} 42. g3 {[%clk 0:00:07]} 42... Rc6 {[%clk 0:00:02]}
43. Rb5 {[%clk 0:00:07]} 43... Ra6 {[%clk 0:00:01.7]} 44. Bd4 {[%clk 0:00:06.8]}
1-0

[Event "Early-Titled-Tuesday-Blitz-October-17-2023"]
[Site "Chess.com"]
[Date "2023.10.17"]
[Round "8"]
[White "Byniolus"]
[Black "karinachess1"]
[Result "1-0"]
[WhiteElo "2791"]
[BlackElo "2612"]
[TimeControl "180+1"]
[EndTime "9:32:38 PDT"]
[Termination "Byniolus won on time"]

1. d4 {[%clk 0:03:00.9]} 1... Nf6 {[%clk 0:02:59.5]} 2. Nf3 {[%clk 0:03:01.2]}
2... e6 {[%clk 0:02:58.3]} 3. Bf4 {[%clk 0:03:01.4]} 3... b6 {[%clk 0:02:53]} 4.
h3 {[%clk 0:03:01.2]} 4... Bd6 {[%clk 0:02:50.9]} 5. Bxd6 {[%clk 0:03:00.9]}
5... cxd6 {[%clk 0:02:51.8]} 6. e3 {[%clk 0:03:01.8]} 6... Bb7 {[%clk
0:02:48.2]} 7. Be2 {[%clk 0:03:02.7]} 7... O-O {[%clk 0:02:47.9]} 8. O-O {[%clk
0:03:02.9]} 8... Nc6 {[%clk 0:02:47.8]} 9. Nbd2 {[%clk 0:03:03.6]} 9... d5
{[%clk 0:02:45.2]} 10. c4 {[%clk 0:03:03.7]} 10... dxc4 {[%clk 0:02:39.1]} 11.
Nxc4 {[%clk 0:03:04.6]} 11... Qe7 {[%clk 0:02:38.7]} 12. Qb3 {[%clk 0:03:03.1]}
12... Rfc8 {[%clk 0:02:26.5]} 13. Rfc1 {[%clk 0:03:01.5]} 13... d5 {[%clk
0:02:19.6]} 14. Nce5 {[%clk 0:03:00.9]} 14... Nxe5 {[%clk 0:02:16.4]} 15. Nxe5
{[%clk 0:03:01]} 15... Nd7 {[%clk 0:02:15]} 16. Nd3 {[%clk 0:02:48]} 16... Rxc1+
{[%clk 0:01:49.2]} 17. Rxc1 {[%clk 0:02:48.9]} 17... Rc8 {[%clk 0:01:49.6]} 18.
Rxc8+ {[%clk 0:02:35.4]} 18... Bxc8 {[%clk 0:01:50.5]} 19. Qa4 {[%clk
0:02:16.9]} 19... Nf6 {[%clk 0:01:46.8]} 20. Ne5 {[%clk 0:02:09.4]} 20... Qc7
{[%clk 0:01:37.7]} 21. Qc6 {[%clk 0:02:07.3]} 21... Qb8 {[%clk 0:01:08.6]} 22.
g4 {[%clk 0:01:48.7]} 22... h6 {[%clk 0:01:08.4]} 23. f4 {[%clk 0:01:46.7]}
23... Bb7 {[%clk 0:01:06.8]} 24. Qc2 {[%clk 0:01:44.4]} 24... Ne4 {[%clk
0:00:58.1]} 25. Bd3 {[%clk 0:01:33.5]} 25... Nd6 {[%clk 0:00:56.8]} 26. Kf2
{[%clk 0:01:30.8]} 26... Qc8 {[%clk 0:00:51.6]} 27. Qd2 {[%clk 0:01:17.4]} 27...
Qc7 {[%clk 0:00:45.3]} 28. h4 {[%clk 0:01:14.6]} 28... f6 {[%clk 0:00:32.4]} 29.
Ng6 {[%clk 0:01:07.8]} 29... a5 {[%clk 0:00:21.5]} 30. Kf3 {[%clk 0:00:55.4]}
30... Kf7 {[%clk 0:00:15.7]} 31. h5 {[%clk 0:00:54]} 31... Nc4 {[%clk
0:00:08.9]} 32. Qc3 {[%clk 0:00:50.1]} 32... Qc8 {[%clk 0:00:08.6]} 33. Ke2
{[%clk 0:00:39.7]} 33... b5 {[%clk 0:00:06.6]} 34. a3 {[%clk 0:00:32.4]} 34...
a4 {[%clk 0:00:05.5]} 35. Qb4 {[%clk 0:00:30.5]} 35... Qe8 {[%clk 0:00:04]} 36.
Qc5 {[%clk 0:00:28]} 36... Bc6 {[%clk 0:00:03.8]} 37. Bxc4 {[%clk 0:00:23.4]}
37... dxc4 {[%clk 0:00:03.9]} 38. Kf2 {[%clk 0:00:16]} 38... Bd7 {[%clk
0:00:04.3]} 39. Qc7 {[%clk 0:00:14]} 39... Kg8 {[%clk 0:00:04.6]} 40. e4 {[%clk
0:00:12.5]} 40... Kf7 {[%clk 0:00:01.9]} 41. Ke3 {[%clk 0:00:11.8]} 41... Qc8
{[%clk 0:00:02.3]} 42. Qd6 {[%clk 0:00:11.2]} 42... c3 {[%clk 0:00:01.9]} 43.
Qe7+ {[%clk 0:00:07.8]} 43... Kg8 {[%clk 0:00:01.8]} 44. Qb4 {[%clk 0:00:08.7]}
44... cxb2 {[%clk 0:00:01.3]} 45. Ne7+ {[%clk 0:00:08.4]} 45... Kf7 {[%clk
0:00:01.4]} 46. Nxc8 {[%clk 0:00:09.3]} 1-0

[Event "Early-Titled-Tuesday-Blitz-October-17-2023"]
[Site "Chess.com"]
[Date "2023.10.17"]
[Round "8"]
[White "Karttunen"]
[Black "viktorgen2021"]
[Result "1-0"]
[WhiteElo "2579"]
[BlackElo "2413"]
[TimeControl "180+1"]
[EndTime "9:32:40 PDT"]
[Termination "Karttunen won by resignation"]

1. e4 {[%clk 0:03:00.9]} 1... g6 {[%clk 0:02:57.3]} 2. d4 {[%clk 0:03:00]} 2...
Bg7 {[%clk 0:02:56.5]} 3. Nc3 {[%clk 0:02:56.8]} 3... d6 {[%clk 0:02:55.6]} 4.
f4 {[%clk 0:02:56]} 4... Nf6 {[%clk 0:02:54.8]} 5. Nf3 {[%clk 0:02:53.1]} 5...
O-O {[%clk 0:02:54.1]} 6. Bd3 {[%clk 0:02:50.4]} 6... Na6 {[%clk 0:02:53.7]} 7.
e5 {[%clk 0:02:37.9]} 7... Ne8 {[%clk 0:02:53.4]} 8. Be3 {[%clk 0:02:29.1]} 8...
c5 {[%clk 0:02:51.5]} 9. dxc5 {[%clk 0:02:22.1]} 9... Nxc5 {[%clk 0:02:50.9]}
10. Bxc5 {[%clk 0:02:07.7]} 10... dxc5 {[%clk 0:02:51.8]} 11. Be4 {[%clk
0:02:08.1]} 11... Qa5 {[%clk 0:02:48]} 12. O-O {[%clk 0:01:57.3]} 12... Nc7
{[%clk 0:02:45.9]} 13. Qe1 {[%clk 0:01:40.8]} 13... Bg4 {[%clk 0:02:41.9]} 14.
Nd5 {[%clk 0:01:20.5]} 14... Qxe1 {[%clk 0:02:21.3]} 15. Nxe7+ {[%clk
0:01:19.8]} 15... Kh8 {[%clk 0:02:21.9]} 16. Raxe1 {[%clk 0:01:19.4]} 16... Be6
{[%clk 0:02:05.5]} 17. Rd1 {[%clk 0:01:05]} 17... Rfe8 {[%clk 0:01:52.8]} 18.
Nd5 {[%clk 0:01:03.8]} 18... Na6 {[%clk 0:01:41.5]} 19. a3 {[%clk 0:00:55.1]}
19... Rad8 {[%clk 0:01:35.1]} 20. Ne3 {[%clk 0:00:51.4]} 20... Bc8 {[%clk
0:01:30.1]} 21. Ng5 {[%clk 0:00:45.4]} 21... Kg8 {[%clk 0:01:26.2]} 22. Bd5
{[%clk 0:00:44.3]} 22... Rd7 {[%clk 0:01:25.8]} 23. Bc4 {[%clk 0:00:35.1]} 23...
Rxd1 {[%clk 0:01:15.5]} 24. Bxf7+ {[%clk 0:00:34.6]} 24... Kh8 {[%clk
0:01:12.4]} 25. Rxd1 {[%clk 0:00:35.5]} 25... Rf8 {[%clk 0:01:12.8]} 26. Bc4
{[%clk 0:00:31.2]} 26... h6 {[%clk 0:01:10.2]} 27. Nf7+ {[%clk 0:00:30.7]} 27...
Kh7 {[%clk 0:01:10.7]} 28. Rd8 {[%clk 0:00:29.1]} 28... Nc7 {[%clk 0:01:06.8]}
29. Rxf8 {[%clk 0:00:28.6]} 29... Bxf8 {[%clk 0:01:07.7]} 30. Nd6 {[%clk
0:00:28.6]} 30... Be6 {[%clk 0:01:04.4]} 31. Bxe6 {[%clk 0:00:27.6]} 31... Nxe6
{[%clk 0:01:05.3]} 32. g3 {[%clk 0:00:27]} 32... Bxd6 {[%clk 0:01:00.6]} 33.
exd6 {[%clk 0:00:27]} 33... Kg7 {[%clk 0:01:01.5]} 34. f5 {[%clk 0:00:24.3]}
34... gxf5 {[%clk 0:00:59.7]} 35. Nxf5+ {[%clk 0:00:24.5]} 35... Kg6 {[%clk
0:01:00.6]} 36. Ne3 {[%clk 0:00:21.2]} 36... Kf7 {[%clk 0:00:56.3]} 37. Kf2
{[%clk 0:00:21.4]} 37... Ng5 {[%clk 0:00:54.9]} 38. Nf5 {[%clk 0:00:18.9]} 38...
Ke6 {[%clk 0:00:51.1]} 39. Nxh6 {[%clk 0:00:17.9]} 39... Kxd6 {[%clk 0:00:51.6]}
40. Ng4 {[%clk 0:00:17.8]} 40... Ke6 {[%clk 0:00:51.7]} 41. h4 {[%clk 0:00:18]}
41... Ne4+ {[%clk 0:00:51.4]} 42. Kf3 {[%clk 0:00:18.5]} 42... Nd2+ {[%clk
0:00:51.4]} 43. Ke3 {[%clk 0:00:17.7]} 43... Nc4+ {[%clk 0:00:51.8]} 44. Ke4
{[%clk 0:00:17.7]} 44... Nxb2 {[%clk 0:00:52.4]} 45. Ne3 {[%clk 0:00:18.1]}
45... b5 {[%clk 0:00:50.9]} 46. g4 {[%clk 0:00:18.3]} 46... b4 {[%clk 0:00:49]}
47. axb4 {[%clk 0:00:17.4]} 47... cxb4 {[%clk 0:00:49.9]} 48. Kd4 {[%clk
0:00:17.4]} 48... a5 {[%clk 0:00:50.2]} 49. Kc5 {[%clk 0:00:14.9]} 49... Ke5
{[%clk 0:00:32.3]} 50. h5 {[%clk 0:00:15]} 50... Kf6 {[%clk 0:00:31]} 51. Kb5
{[%clk 0:00:14.6]} 51... Kg5 {[%clk 0:00:25.1]} 52. Kxa5 {[%clk 0:00:14.7]}
52... b3 {[%clk 0:00:25.4]} 53. cxb3 {[%clk 0:00:14.6]} 53... Nd3 {[%clk
0:00:25.8]} 54. b4 {[%clk 0:00:14.9]} 54... Nb2 {[%clk 0:00:21.4]} 55. b5 {[%clk
0:00:14.8]} 55... Nc4+ {[%clk 0:00:22]} 56. Nxc4 {[%clk 0:00:14.7]} 56... Kh4
{[%clk 0:00:22.5]} 57. b6 {[%clk 0:00:15.6]} 57... Kg5 {[%clk 0:00:22.8]} 58. b7
{[%clk 0:00:16.5]} 58... Kh4 {[%clk 0:00:23.5]} 59. b8=Q {[%clk 0:00:17.4]}
59... Kg5 {[%clk 0:00:24.4]} 60. Qe5+ {[%clk 0:00:17.3]} 60... Kh4 {[%clk
0:00:24.5]} 61. Qf5 {[%clk 0:00:17]} 61... Kg3 {[%clk 0:00:24.9]} 62. g5 {[%clk
0:00:17.3]} 1-0

[Event "Early-Titled-Tuesday-Blitz-October-17-2023"]
[Site "Chess.com"]
[Date "2023.10.17"]
[Round "8"]
[White "pineapplepenn"]
[Black "SanchezKelvin"]
[Result "0-1"]
[WhiteElo "2408"]
[BlackElo "2565"]
[TimeControl "180+1"]
[EndTime "9:32:40 PDT"]
[Termination "SanchezKelvin won on time"]

1. d4 {[%clk 0:03:00.9]} 1... Nf6 {[%clk 0:02:25.5]} 2. Bf4 {[%clk 0:03:00]}
2... b6 {[%clk 0:02:24.8]} 3. Nc3 {[%clk 0:02:54.3]} 3... Bb7 {[%clk 0:02:24.3]}
4. f3 {[%clk 0:02:52.3]} 4... d5 {[%clk 0:02:23]} 5. e3 {[%clk 0:02:35.3]} 5...
a6 {[%clk 0:02:22.3]} 6. Bd3 {[%clk 0:02:32.6]} 6... e6 {[%clk 0:02:19.5]} 7. g4
{[%clk 0:02:32.8]} 7... c5 {[%clk 0:02:18.2]} 8. h4 {[%clk 0:02:25.2]} 8... Nc6
{[%clk 0:02:17.7]} 9. h5 {[%clk 0:02:10.6]} 9... cxd4 {[%clk 0:02:11.7]} 10.
exd4 {[%clk 0:02:09.1]} 10... Nxd4 {[%clk 0:02:11.3]} 11. g5 {[%clk 0:02:07.3]}
11... Nd7 {[%clk 0:02:05.9]} 12. h6 {[%clk 0:02:01.7]} 12... e5 {[%clk
0:01:56.5]} 13. Be3 {[%clk 0:01:57]} 13... Ne6 {[%clk 0:01:55.5]} 14. hxg7
{[%clk 0:01:50.2]} 14... Bxg7 {[%clk 0:01:52.9]} 15. Bf5 {[%clk 0:01:25.1]}
15... d4 {[%clk 0:01:50]} 16. Ne4 {[%clk 0:01:25.5]} 16... Bxe4 {[%clk
0:01:43.7]} 17. fxe4 {[%clk 0:01:25.2]} 17... dxe3 {[%clk 0:01:41.4]} 18. Bxe6
{[%clk 0:01:25]} 18... fxe6 {[%clk 0:01:39.2]} 19. Qh5+ {[%clk 0:01:25.7]} 19...
Ke7 {[%clk 0:01:34.7]} 20. O-O-O {[%clk 0:01:25.7]} 20... Qe8 {[%clk 0:01:27.6]}
21. Qh3 {[%clk 0:01:19.4]} 21... Qg6 {[%clk 0:01:25.4]} 22. Qxe3 {[%clk
0:01:19.7]} 22... h6 {[%clk 0:01:19.4]} 23. Nf3 {[%clk 0:01:15.8]} 23... hxg5
{[%clk 0:01:17]} 24. Qd3 {[%clk 0:01:00.6]} 24... Rhd8 {[%clk 0:00:33.9]} 25.
Qd6+ {[%clk 0:00:57.8]} 25... Ke8 {[%clk 0:00:32.8]} 26. Kb1 {[%clk 0:00:38.6]}
26... g4 {[%clk 0:00:22.6]} 27. Nh4 {[%clk 0:00:29.2]} 27... Qf6 {[%clk
0:00:21.8]} 28. Rhf1 {[%clk 0:00:28]} 28... Qe7 {[%clk 0:00:21.6]} 29. Qc6
{[%clk 0:00:20.6]} 29... Rac8 {[%clk 0:00:19.6]} 30. Qa4 {[%clk 0:00:14.1]}
30... Qxh4 {[%clk 0:00:16.9]} 31. Qb3 {[%clk 0:00:14.3]} 31... Qe7 {[%clk
0:00:16.1]} 32. Qg3 {[%clk 0:00:11.7]} 32... Nf6 {[%clk 0:00:15.2]} 33. Rde1
{[%clk 0:00:09]} 33... Qc7 {[%clk 0:00:14.1]} 34. c3 {[%clk 0:00:06.7]} 34...
Qd6 {[%clk 0:00:12.3]} 35. Qh4 {[%clk 0:00:05.5]} 35... Ke7 {[%clk 0:00:10.4]}
36. Qg5 {[%clk 0:00:04.7]} 36... Rg8 {[%clk 0:00:10.4]} 37. Qg6 {[%clk
0:00:03.5]} 37... Rcf8 {[%clk 0:00:09.3]} 38. Rd1 {[%clk 0:00:01.9]} 38... Qc6
{[%clk 0:00:09.5]} 39. Qg5 {[%clk 0:00:01.5]} 39... Qxe4+ {[%clk 0:00:09.1]} 40.
Ka1 {[%clk 0:00:00.6]} 40... Qc6 {[%clk 0:00:09.2]} 0-1